[Event "5th Sharjah Masters 2022"]
[Site "Sharjah"]
[Date "2022.05.27"]
[Round "7.32"]
[White "Ortega Amarelle, Mariano"]
[Black "Msellek, Ilyass"]
[Result "1-0"]
[ECO "A11"]
[WhiteElo "2476"]
[BlackElo "2411"]
[Annotator "TA"]
[PlyCount "127"]
[EventDate "2022.05.21"]
[EventType "swiss"]
[EventCountry "UAE"]
[SourceTitle "playchess.com"]
[Source "ChessBase"]
[SourceQuality "1"]
[TimeControl "5400+30"]

{[%evp 13,127,12,16,16,18,20,15,13,42,34,46,34,34,34,39,42,21,18,33,33,25,27,39,22,14,20,33,22,32,31,39,18,35,0,11,14,39,29,70,87,81,64,123,110,308,315,307,298,542,152,147,118,325,326,312,320,320,329,318,318,305,314,327,317,395,395,381,313,356,329,334,325,318,306,387,372,465,464,466,459,451,425,458,454,427,347,395,380,448,448,443,441,435,332,261,333,516,515,470,456,660,668,659,614,572,459,1244,779,1280,942,8240,7231,7083,10916,2267,1831]} 1. Nf3 {[%emt 0:00:02]} d5 {[%emt 0:00:25]} 2. g3 {[%emt 0:00:13]} Nf6 {[%emt 0:01:35]} 3. Bg2 {[%emt 0:00:15]} c6 {[%emt 0:02:28]} 4. O-O {[%emt 0:07:12]} Bf5 {[%emt 0:00:34]} 5. c4 {[%emt 0:08:08]} e6 {[%emt 0:00:50]} 6. cxd5 {[%emt 0:00:24]} exd5 {[%emt 0:00:29]} 7. d3 {[%emt 0:00:04]} Be7 {[%emt 0:01:34]} 8. Qb3 {[%emt 0:00:24] A11: English Opening: 1...c6.} Qb6 {[%emt 0:01:59]} 9. Qc2 {[%emt 0:00:07]} O-O {[%emt 0:05:39]} 10. Nc3 {[%emt 0:02:24] The position is equal.} h6 {[%emt 0:07:58] 10...h6 scores better than 10...Na6.} 11. e4 $1 {[%emt 0:01:30]} Bh7 {[%emt 0:01:51]} 12. Be3 {[%emt 0:18:02]} Qa6 {[%emt 0:00:47]} 13. Rfd1 {[%emt 0:01:57] [#]} Re8 $146 {[%emt 0:07:36]} ({Predecessor:} 13... Nbd7 14. exd5 cxd5 15. Qb3 Rfd8 16. Qb5 Qxb5 17. Nxb5 a6 18. Nc3 Rac8 19. Bh3 g5 {0-1 (80) Firouzja,A (2749)-Le,Q (2709) chess24.com INT 2020}) 14. Qb3 {[%emt 0:05:46][%cal Re4d5]} Ng4 {[%emt 0:07:23]} 15. Bd4 {[%emt 0:08:53]} Nd7 {[%emt 0:06:25]} 16. h3 {[%emt 0:09:40]} (16. exd5 c5 17. Be3 (17. Bh3 $2 cxd4 18. Nb5 Nc5 $17) 17... Bxd3 $15) 16... Ngf6 {[%emt 0:01:28][%cal Rd5e4]} 17. exd5 {[%emt 0:02:53]} Bxd3 {[%emt 0:02:44][%cal Bh7d3,Bd3c4,Bc4d5][%mdl 32]} 18. dxc6 {[%emt 0:06:29]} bxc6 {[%emt 0:00:18] [#]} 19. Nd5 $1 {[%emt 0:06:01]} Bc4 {[%emt 0:03:02]} 20. Nxe7+ {[%emt 0:03:51]} Rxe7 {[%emt 0:00:05]} 21. Qc3 $36 {[%emt 0:03:06][%mdl 2048] White is more active.} Bd5 {[%emt 0:05:18]} 22. a3 {[%emt 0:02:12]} (22. Bxf6 $5 Nxf6 23. Nd4 $11) 22... Rae8 {[%emt 0:02:36][%cal Oc6c5]} 23. Rac1 {[%emt 0:03:46]} Qb7 {[%emt 0:09:43][%cal Oc6c5]} 24. b4 {[%emt 0:00:23] Against c5} Ne4 {[%emt 0:04:00]} 25. Qd3 {[%emt 0:02:34]} Ndf6 {[%emt 0:02:08]} 26. Nh4 {[%emt 0:00:38]} Re6 {[%emt 0:04:29]} 27. Nf5 {[%emt 0:01:50]} Ng5 {[%emt 0:03:11]} ({Better is} 27... h5 $14) 28. Bxd5 $16 {[%emt 0:01:46]} Nxd5 {[%emt 0:00:14]} (28... cxd5 $16 {was called for.} 29. Kg2 Nge4) 29. h4 $1 $18 {[%emt 0:02:11]} (29. Bxg7 $2 Nxh3+ 30. Kf1 {[#]} (30. Kg2 $2 Nhf4+ 31. gxf4 Nxf4+ 32. Kh2 Nxd3 $19) 30... Ndf4 $1 31. gxf4 Nxf4 32. Nxh6+ (32. Qc4 $2 c5 $19) 32... Rxh6 $1 {[%mdl 512]} 33. Bxh6 Nxd3 34. Rxd3 Qb5 $19) 29... Nh3+ {[%emt 0:01:31]} 30. Kh2 {[%emt 0:00:01]} c5 $2 {[%emt 0:00:16]} (30... g6 {was worth a try.} 31. Nxh6+ (31. Kxh3 gxf5 32. Qxf5 Rd6 $18) 31... Kh7 32. Nxf7 (32. Kxh3 Kxh6 33. Rc5 Kh7 $18) 32... Qxf7 33. Kxh3 Kg8) 31. Kxh3 $2 {[%emt 0:00:35]} (31. Bxg7 Nxb4 32. axb4 Nxf2 $18) (31. bxc5 $18 {is the precise move to win.} Nxf2 32. Bxf2) 31... cxd4 $16 {[%emt 0:00:34]} 32. Qxd4 {[%emt 0:00:07][%csl Gf5][%cal Rd4g7]} Re5 $2 {[%emt 0:00:52]} (32... Nf6 $16) 33. Qg4 $18 {[%emt 0:00:27][%csl Gf5,LRg7,LRh6][%cal Rg4g7]} g6 {[%emt 0:01:12]} 34. Nd6 {[%emt 0:00:08][%cal Bf5d6,Bd6b7,Bb7d8,Bd8e6,Be6f4,Bf4d3][%mdl 32]} ({Weaker is} 34. Nxh6+ Kh7 $16) 34... h5 {[%emt 0:00:19]} 35. Qxg6+ {[%emt 0:00:39]} ({Less strong is} 35. Nxb7 hxg4+ 36. Kg2 Nf6 $16) 35... fxg6 {[%emt 0:00:03]} 36. Nxb7 {[%emt 0:00:07]} Nf6 {[%emt 0:02:14]} 37. Rc2 {[%emt 0:00:10]} Ng4 {[%emt 0:00:11]} 38. Rd8 {[%emt 0:00:15]} Rxd8 {[%emt 0:02:35]} 39. Nxd8 {[%emt 0:00:02][%mdl 4096] Endgame KRN-KRN} Re1 {[%emt 0:00:08]} 40. Ra2 {[%emt 0:01:01] Inhibits Ra1.} Rc1 {[%emt 0:00:53]} 41. Kg2 {[%emt 0:00:21]} Kf8 {[%emt 0:01:17]} 42. Ne6+ {[%emt 0:00:17]} Kf7 {[%emt 0:00:07]} 43. Nf4 {[%emt 0:00:17]} Rc3 {[%emt 0:01:00]} 44. a4 {[%emt 0:00:35][%cal Ba3a4,Ba4a5][%mdl 32]} Nf6 {[%emt 0:00:26]} 45. b5 {[%emt 0:00:37]} Rc4 {[%emt 0:00:21]} 46. Nd3 {[%emt 0:01:27] Ne5+ is the strong threat.} Nd7 {[%emt 0:00:34] Against Ne5+} 47. Ra3 {[%emt 0:00:50]} Ke6 {[%emt 0:01:39]} 48. a5 {[%emt 0:00:27]} Kd6 {[%emt 0:00:07]} 49. Kf3 {[%emt 0:01:03]} Rc8 {[%emt 0:00:50]} 50. Rb3 {[%emt 0:01:42]} Kd5 {[%emt 0:00:07]} 51. Nf4+ {[%emt 0:00:38]} (51. b6 axb6 52. Nf4+ Kc4 $18) 51... Kc4 {[%emt 0:00:38]} 52. Rb1 {[%emt 0:00:06]} Ne5+ {[%emt 0:00:15]} 53. Ke4 {[%emt 0:00:27]} Re8 {[%emt 0:00:03]} 54. b6 {[%emt 0:00:20] Threatens to win with Rc1+.} axb6 {[%emt 0:02:11]} (54... Nd3+ {might work better.} 55. Kf3 Ne1+ 56. Rxe1 Rxe1 57. bxa7 Re8 58. Nxg6 Ra8) 55. axb6 {[%emt 0:00:04] White is clearly winning.} Nd3+ {[%emt 0:01:55]} 56. Kf3 {[%emt 0:00:43] And now Nxd3 would win.} Ne1+ {[%emt 0:00:06]} (56... Ne5+ $142 57. Kg2 Rb8) 57. Rxe1 {[%emt 0:00:15]} Rxe1 {[%emt 0:00:02]} 58. Nxg6 {[%emt 0:00:07] KR-KN} Rb1 {[%emt 0:02:38]} 59. Nf4 {[%emt 0:00:07] Hoping for Ke4.} Rb3+ {[%emt 0:00:02]} (59... Rxb6 $142 60. Nxh5 Kd5) 60. Ke4 {[%emt 0:00:13]} Rxb6 {[%emt 0:01:29]} 61. Nxh5 {[%emt 0:00:10]} Re6+ {[%emt 0:00:12]} 62. Kf5 {[%emt 0:00:11]} Re2 {[%emt 0:00:08]} 63. f4 {[%emt 0:00:24]} Kd5 {[%emt 0:00:03]} 64. Nf6+ {[%emt 0:01:03] Weighted Error Value: White=0.17 (very precise) /Black=0.39} 1-0

[Event "5th Sharjah Masters 2022"]
[Site "Sharjah"]
[Date "2022.05.27"]
[Round "7.33"]
[White "Gunina, Valentina"]
[Black "Zawadzka, Jolanta"]
[Result "0-1"]
[ECO "B23"]
[WhiteElo "2471"]
[BlackElo "2409"]
[Annotator "TA"]
[PlyCount "98"]
[EventDate "2022.05.21"]
[EventType "swiss"]
[EventCountry "UAE"]
[SourceTitle "playchess.com"]
[Source "ChessBase"]
[SourceQuality "1"]
[TimeControl "5400+30"]

{[%evp 9,98,18,22,21,23,28,68,71,61,37,42,43,44,0,4,3,22,-30,-18,-88,-61,-56,16,13,13,12,31,22,26,-58,-10,-22,-7,-26,-31,-95,-62,-52,-20,-143,-145,-192,-184,-162,-141,-193,-185,-192,-193,-198,-137,-134,-135,-129,-129,-127,-121,-186,-198,-179,-190,-358,-265,-418,-258,-520,-547,-739,-721,-769,-775,-701,-654,-644,-627,-577,-534,-501,-436,-1807,-1731,-1727,-1538,-2489,-2371,-2254,-2442,-1805,-1845,-1828,-1743]} 1. e4 {[%emt 0:00:06]} c5 {[%emt 0:00:06][%cal Bc7c5,Bc5d4][%mdl 32]} 2. Nc3 {[%emt 0:00:04]} Nc6 {[%emt 0:00:05]} 3. Nge2 {[%emt 0:00:08]} Nd4 {[%emt 0:04:50]} 4. Nxd4 {[%emt 0:01:52]} cxd4 {[%emt 0:00:03]} 5. Ne2 {[%emt 0:00:07]} d5 {[%emt 0:02:44]} 6. e5 {[%emt 0:03:32] B23: Closed Sicilian: Lines without g3.} Qc7 {[%emt 0:04:16]} 7. f4 {[%emt 0:00:31] [#]} Qb6 $146 {[%emt 0:00:38]} ({Predecessor:} 7... Bg4 8. h3 d3 9. cxd3 Bd7 10. b3 e6 11. Bb2 Qb6 12. Bd4 Bc5 13. Bxc5 Qxc5 {½-½ (37) Fremmegaard,J (2337)-Fluit,J (2327) ICCF email 2020}) 8. c3 {[%emt 0:00:38] White is slightly better.} dxc3 {[%emt 0:04:26]} 9. dxc3 {[%emt 0:02:39]} e6 {[%emt 0:00:08]} 10. Nd4 {[%emt 0:00:09]} Bd7 {[%emt 0:02:43] Inhibits Bb5.} 11. f5 {[%emt 0:01:24]} exf5 {[%emt 0:17:35]} 12. Bd3 {[%emt 0:00:45]} Bc5 {[%emt 0:01:32]} 13. Be3 {[%emt 0:01:03]} (13. Bxf5 $142 Bxf5 14. Nxf5) 13... Ne7 {[%emt 0:04:44]} 14. e6 {[%emt 0:04:24]} (14. O-O $11) 14... fxe6 $17 {[%emt 0:07:13]} 15. b4 $1 {[%emt 0:01:50] [#]} Bxb4 {[%emt 0:14:45]} 16. cxb4 $11 {[%emt 0:00:54]} Qxb4+ {[%emt 0:00:09]} 17. Qd2 {[%emt 0:00:24]} Qxd2+ {[%emt 0:00:44]} 18. Kxd2 {[%emt 0:00:26]} e5 {[%emt 0:00:17] [#] Prevents Bf4.} 19. Nb3 {[%emt 0:00:40]} (19. Bg5 $1 $11) 19... Kf7 {[%emt 0:03:58]} (19... b6 $15) 20. Rhf1 {[%emt 0:00:45]} b6 {[%emt 0:02:19][%cal Og7g5]} 21. Rac1 {[%emt 0:02:16]} Rac8 {[%emt 0:01:58]} 22. Ba6 {[%emt 0:00:18]} ({Better is} 22. Rce1 $1 $15) 22... Rxc1 {[%emt 0:04:25]} 23. Rxc1 {[%emt 0:01:25]} Ke6 {[%emt 0:02:12]} 24. Bg5 {[%emt 0:01:29] [#]} (24. Bc5 $1 $11) 24... Nc6 $1 $17 {[%emt 0:00:31]} 25. Bb7 {[%emt 0:01:58]} (25. a4 $17) 25... h6 $19 {[%emt 0:00:54]} 26. Bh4 {[%emt 0:00:48]} Kd6 {[%emt 0:00:42]} 27. Bg3 {[%emt 0:04:09]} (27. Bxc6 $17 Bxc6 28. Be7+ Kd7 29. Ba3) 27... f4 {[%emt 0:00:42]} 28. Bf2 {[%emt 0:00:18]} g5 {[%emt 0:02:19][%cal Bg7g5,Bg5f4,Bf4f3][%mdl 32]} 29. g3 {[%emt 0:03:14]} Rb8 {[%emt 0:01:54]} (29... Nd8 $19 30. Ba6 Ne6) 30. Bxc6 $17 {[%emt 0:01:45]} Bxc6 {[%emt 0:00:02]} 31. gxf4 {[%emt 0:00:04]} gxf4 {[%emt 0:00:08]} 32. Rg1 {[%emt 0:00:05] Against Rg8} Re8 {[%emt 0:00:43]} 33. Bh4 {[%emt 0:01:03]} (33. Rg6+ $17 Re6 34. Rg7) 33... d4 $19 {[%emt 0:03:02]} 34. Rg7 {[%emt 0:04:36]} Kd5 {[%emt 0:00:48]} 35. Bf6 $2 {[%emt 0:04:44]} (35. Ke1) 35... a5 {[%emt 0:02:57][%cal Ba7a5,Ba5a4][%mdl 32] Strongly threatening ...a4.} 36. Rg6 {[%emt 0:00:33]} (36. Ke1 $142) 36... f3 {[%emt 0:03:42]} 37. Bh4 $2 {[%emt 0:05:03]} (37. Ke1 {is the only way for White.} Rc8 38. Rxh6) 37... a4 {[%emt 0:01:44] Black is clearly winning.} 38. Na1 {[%emt 0:00:43]} e4 {[%emt 0:01:10][%cal Be5e4,Be4e3][%mdl 32] aiming for ...e3+.} 39. Nc2 {[%emt 0:07:52]} e3+ {[%emt 0:00:04]} 40. Kc1 {[%emt 0:00:35]} Bb5 {[%emt 0:03:30] ...f2 is the strong threat.} 41. Rf6 {[%emt 0:04:54]} f2 {[%emt 0:01:47]} 42. Bxf2 {[%emt 0:00:03]} exf2 {[%emt 0:00:23]} 43. Rxf2 {[%emt 0:00:03][%mdl 4096] Endgame KRB-KRN} Bc4 {[%emt 0:00:43]} 44. Rf6 {[%emt 0:02:04]} (44. Rf5+ $142 Re5 45. Nb4+ Kd6 46. Rf2) 44... d3 {[%emt 0:00:48]} 45. Na3 {[%emt 0:02:43]} b5 {[%emt 0:00:49]} 46. Rxh6 {[%emt 0:00:56]} Re2 {[%emt 0:00:39] And now ...Kc5 would win.} 47. Rh5+ {[%emt 0:01:15]} Kc6 {[%emt 0:00:23]} 48. Nb1 {[%emt 0:05:49]} Rc2+ {[%emt 0:00:04]} 49. Kd1 {[%emt 0:00:02]} Rxa2 {[%emt 0:00:05] Weighted Error Value: White=0.63/Black=0.15 (very precise)} 0-1

[Event "5th Sharjah Masters 2022"]
[Site "Sharjah"]
[Date "2022.05.27"]
[Round "7.34"]
[White "Baenziger, Fabian"]
[Black "Buksa, Nataliya"]
[Result "1/2-1/2"]
[ECO "D80"]
[WhiteElo "2430"]
[BlackElo "2406"]
[Annotator "TA"]
[PlyCount "37"]
[EventDate "2022.05.21"]
[EventType "swiss"]
[EventCountry "UAE"]
[SourceTitle "playchess.com"]
[Source "ChessBase"]
[SourceQuality "1"]
[TimeControl "5400+30"]

{[%evp 25,37,16,22,13,11,14,13,0,0,0,0,0,0,0]} 1. d4 {[%emt 0:00:03]} Nf6 {[%emt 0:00:07]} 2. c4 {[%emt 0:00:08]} g6 {[%emt 0:00:03]} 3. Nc3 {[%emt 0:00:27]} d5 {[%emt 0:00:04]} 4. Nf3 {[%emt 0:00:45]} Bg7 {[%emt 0:00:05]} 5. Bg5 {[%emt 0:01:09]} Ne4 {[%emt 0:00:17]} 6. Bf4 {[%emt 0:00:23]} Nxc3 {[%emt 0:00:26]} 7. bxc3 {[%emt 0:00:06]} c5 {[%emt 0:00:13]} 8. cxd5 {[%emt 0:02:41]} Qxd5 {[%emt 0:00:11]} 9. e3 {[%emt 0:00:05]} O-O {[%emt 0:00:16]} 10. Be2 {[%emt 0:00:21]} cxd4 {[%emt 0:00:06]} 11. cxd4 {[%emt 0:00:05]} Qa5+ {[%emt 0:00:02]} 12. Qd2 {[%emt 0:00:23]} Qxd2+ {[%emt 0:00:04]} 13. Kxd2 {[%emt 0:00:05]} Nc6 {[%emt 0:00:03] The position is equal.} 14. Rhb1 {[%emt 0:01:33] D80: Grünfeld: Unusual White 4th moves and 4 Bg5.} Rd8 {[%emt 0:00:06]} 15. Ke1 {[%emt 0:11:41]} b6 {[%emt 0:00:06]} 16. a4 {[%emt 0:00:04]} Bf5 {[%emt 0:00:55] [#]} 17. Rb3 $146 {[%emt 0:15:11]} ({Predecessor:} 17. Rb2 a5 18. Rc1 Nb4 19. Kd2 Rdc8 20. Rxc8+ Rxc8 21. Ne5 f6 22. Nc4 e5 23. dxe5 {½-½ (29) Millstone,M (2341)-Sneddon,I (2367) ICCF email 2021}) 17... a5 {[%emt 0:02:59]} 18. Rxb6 {[%emt 0:17:13]} Nb4 {[%emt 0:00:32] [#] Strongly threatening ...Nc2+.} 19. Rc1 {[%emt 0:00:10] A rather calm draw.  Weighted Error Value: White=0.04 (flawless) /Black=0.00 (flawless)} 1/2-1/2

[Event "5th Sharjah Masters 2022"]
[Site "Sharjah"]
[Date "2022.05.27"]
[Round "7.35"]
[White "Aziz, Husain"]
[Black "Haznedaroglu, Kivanc"]
[Result "0-1"]
[ECO "B22"]
[WhiteElo "2379"]
[BlackElo "2425"]
[Annotator "TA"]
[PlyCount "100"]
[EventDate "2022.05.21"]
[EventType "swiss"]
[EventCountry "UAE"]
[SourceTitle "playchess.com"]
[Source "ChessBase"]
[SourceQuality "1"]
[TimeControl "5400+30"]

{[%evp 16,99,23,35,32,28,54,50,58,45,51,33,36,22,27,28,20,19,35,35,37,15,15,29,16,16,14,24,39,0,0,-12,7,4,10,0,14,0,0,0,0,0,0,0,0,0,0,0,0,0,0,-86,0,0,0,0,0,0,0,0,0,0,0,0,40,40,40,40,40,32,32,40,68,18,30,0,0,0,0,-437,-448,-29997,-29998,-29998,-29999,-29999]} 1. e4 {[%emt 0:00:07][%cal Be2e4,Be4e5][%mdl 32]} c5 {[%emt 0:00:19]} 2. Nf3 {[%emt 0:00:17]} e6 {[%emt 0:00:10]} 3. c3 {[%emt 0:00:36]} Nf6 {[%emt 0:01:56]} 4. e5 {[%emt 0:00:17]} Nd5 {[%emt 0:00:03]} 5. Bc4 {[%emt 0:00:32]} d6 {[%emt 0:01:19]} 6. d4 {[%emt 0:00:17]} cxd4 {[%emt 0:01:32]} 7. cxd4 {[%emt 0:00:17]} Nb6 {[%emt 0:05:46]} 8. Bb3 {[%emt 0:01:00]} Nc6 {[%emt 0:02:31]} 9. Qe2 {[%emt 0:01:07] 9.exd6 is the modern continuation.} Be7 {[%emt 0:01:23] was the old line (9...dxe5). B22: Sicilian: 2 c3.} 10. Nc3 {[%emt 0:00:54]} d5 {[%emt 0:02:58]} 11. h4 {[%emt 0:02:46][%cal Bh2h4,Bh4h5,Bh5h6][%mdl 32] [#]} a6 $146 {[%emt 0:03:15] White is slightly better.} ({Predecessor:} 11... h6 12. h5 Bd7 13. O-O a6 14. Bf4 Rc8 15. Rad1 Na5 16. Bc2 Nbc4 17. Bd3 Qb6 {½-½ (54) Predojevic,B (2609)-Tomic,B (2393) Vogosca 2007}) 12. h5 {[%emt 0:01:00]} Bd7 {[%emt 0:00:39]} 13. h6 {[%emt 0:07:14]} g6 {[%emt 0:00:07]} 14. O-O {[%emt 0:00:15]} O-O {[%emt 0:04:28]} 15. Rd1 {[%emt 0:03:56]} Rc8 {[%emt 0:01:13]} 16. Bf4 {[%emt 0:04:49]} Na5 {[%emt 0:03:30]} 17. Nh2 {[%emt 0:10:04]} Nbc4 {[%emt 0:02:46]} 18. Ng4 {[%emt 0:07:49]} Nxb3 {[%emt 0:20:26]} 19. axb3 {[%emt 0:00:24][%cal Ba2b3,Bb3b4][%mdl 32]} Na5 {[%emt 0:00:35]} 20. b4 $1 {[%emt 0:00:34]} ({Much weaker is} 20. Qc2 Qb6 21. Qd3 Nxb3 $17) 20... Nc4 {[%emt 0:00:25]} 21. b3 {[%emt 0:08:26]} Na3 {[%emt 0:08:26]} (21... Bxb4 $2 22. Nf6+ (22. bxc4 Bxc3 23. Nf6+ Kh8 $16) (22. Na2 Be7 $16) 22... Kh8 23. Na2 $18 (23. bxc4 Bxc3 24. Rac1 Rxc4 $16)) 22. Nxd5 {[%emt 0:05:45]} (22. Qd2 $14) 22... exd5 $11 {[%emt 0:00:31]} 23. Rxa3 {[%emt 0:00:13]} Bxg4 {[%emt 0:02:33]} 24. Qxg4 {[%emt 0:00:02]} Bxb4 {[%emt 0:00:52]} 25. Bg5 {[%emt 0:04:44]} Qb6 {[%emt 0:02:00]} 26. Raa1 {[%emt 0:04:30]} Qe6 {[%emt 0:01:30]} 27. Qf3 {[%emt 0:07:47]} Rc2 {[%emt 0:05:11]} 28. Rac1 {[%emt 0:07:13]} Rfc8 {[%emt 0:00:09]} 29. Rxc2 {[%emt 0:04:11]} Rxc2 {[%emt 0:00:03]} 30. Rc1 {[%emt 0:02:12]} Rxc1+ {[%emt 0:01:53]} 31. Bxc1 {[%emt 0:00:02][%mdl 4096] Endgame KQB-KQB} Kf8 {[%emt 0:00:18]} 32. Kf1 {[%emt 0:05:55]} Ke8 {[%emt 0:01:43]} 33. Ke2 {[%emt 0:00:12]} (33. g3 $11 {keeps the balance.}) 33... Kd7 {[%emt 0:00:55]} ({Black should play} 33... Qc8 $17 {( -> ...Qc2+)} 34. Kd1 Qc3 35. Qxc3 Bxc3) 34. Bd2 {[%emt 0:00:27]} Be7 {[%emt 0:00:15]} 35. Kf1 {[%emt 0:02:45]} f6 {[%emt 0:05:09]} 36. Bf4 {[%emt 0:03:11]} f5 {[%emt 0:00:55]} 37. Bd2 {[%emt 0:00:21]} b6 {[%emt 0:05:28]} 38. Kg1 {[%emt 0:00:30]} Qc6 {[%emt 0:02:38]} 39. g4 {[%emt 0:00:39]} Qe6 {[%emt 0:01:34]} 40. gxf5 {[%emt 0:02:16]} gxf5 {[%emt 0:00:01]} 41. Kf1 {[%emt 0:01:04]} Qf7 {[%emt 0:05:55]} 42. Qe2 {[%emt 0:01:25]} b5 {[%emt 0:00:09]} 43. Ba5 {[%emt 0:01:35]} Qe6 {[%emt 0:03:55]} 44. Qc2 {[%emt 0:00:13]} (44. Qh5 $14) 44... Ke8 $1 {[%emt 0:00:02]} 45. Qc7 {[%emt 0:01:07]} f4 {[%emt 0:00:08]} 46. Ke1 {[%emt 0:01:52]} f3 {[%emt 0:00:34]} 47. Bd2 $2 {[%emt 0:00:01][%mdl 8192]} (47. Qb7 $11 {and White stays safe.}) 47... Qg6 $19 {[%emt 0:00:21][%cal Rg6g1]} 48. Be3 {[%emt 0:01:03] [#]} (48. Qb8+ $19 Bd8 49. Ba5 Qb1+ 50. Kd2 Qa2+ 51. Ke3 Qxa5 52. Qc8 Qe1+ 53. Kxf3 Qe4+ 54. Kg3 Qg6+ 55. Kf3 Qxh6 56. Ke2) 48... Bb4+ {[%emt 0:00:17] Black mates.} 49. Kd1 {[%emt 0:00:16]} Qd3+ {[%emt 0:00:01]} 50. Kc1 {[%emt 0:00:19]} Ba3# {[%emt 0:06:43] Weighted Error Value: White=0.42/Black=0.06 (flawless)} 0-1

[Event "5th Sharjah Masters 2022"]
[Site "Sharjah"]
[Date "2022.05.27"]
[Round "7.36"]
[White "Assaubayeva, Bibisara"]
[Black "Farahat, Ali"]
[Result "1-0"]
[ECO "A06"]
[WhiteElo "2439"]
[BlackElo "2381"]
[Annotator "TA"]
[PlyCount "115"]
[EventDate "2022.05.21"]
[EventType "swiss"]
[EventCountry "UAE"]
[SourceTitle "playchess.com"]
[Source "ChessBase"]
[SourceQuality "1"]
[TimeControl "5400+30"]

{[%evp 12,115,16,22,39,24,30,2,0,0,36,25,24,12,8,6,19,0,15,-7,-10,-34,15,22,27,11,11,21,16,21,27,30,20,-4,-3,-7,-16,0,-11,-22,0,-19,-25,-18,0,-34,-30,-25,0,0,0,0,0,0,14,15,8,8,8,8,8,0,8,8,8,8,29,29,29,29,29,20,21,24,29,29,22,15,15,8,8,8,68,89,5501,3256,29969,29971,29973,29974,29974,29975,29975,29976,29976,29977,29977,29978,29978,29979,29980,29981,29981,29980,29980,29980]} 1. d4 {[%emt 0:00:04] Golod,V} d5 {[%emt 0:00:04]} 2. c4 {[%emt 0:00:04]} c6 {[%emt 0:00:10]} 3. Nf3 {[%emt 0:00:08]} Nf6 {[%emt 0:00:05]} 4. e3 {[%emt 0:00:26]} e6 {[%emt 0:00:29]} 5. b3 {[%emt 0:00:05]} Nbd7 {[%emt 0:00:30]} 6. Bd3 {[%emt 0:00:06]} Bd6 {[%emt 0:00:24]} 7. Bb2 {[%emt 0:00:13]} Ne4 {[%emt 0:00:13] A06: Réti Opening: 1 Nf3 d5.} 8. O-O {[%emt 0:04:15]} f5 {[%emt 0:01:15]} 9. Ba3 {[%emt 0:02:08]} Bxa3 {[%emt 0:04:07] The position is equal.} 10. Nxa3 {[%emt 0:00:01]} a5 {[%emt 0:00:36] [#]} 11. Nc2 $146 {[%emt 0:01:34]} ({Predecessor:} 11. Nd2 O-O 12. f3 Nxd2 13. Qxd2 Nf6 14. Nc2 b6 15. cxd5 exd5 16. b4 Bd7 17. Rfb1 Qc7 18. bxa5 Rxa5 {1-0 (45) Golod,V (2555)-Ehlvest,J (2602) New York 2003 CBM 099 [Golod,V]}) 11... Qf6 {[%emt 0:04:42]} 12. a3 {[%emt 0:04:24]} O-O {[%emt 0:03:01]} 13. b4 {[%emt 0:03:02]} Kh8 {[%emt 0:08:17]} 14. Nd2 {[%emt 0:18:17]} e5 {[%emt 0:02:50]} 15. cxd5 {[%emt 0:03:56]} Nc3 {[%emt 0:01:21]} 16. Qe1 {[%emt 0:01:48]} Nxd5 {[%emt 0:01:56]} (16... e4 $15 {feels stronger.} 17. Be2 cxd5) 17. bxa5 $11 {[%emt 0:12:01]} exd4 {[%emt 0:02:36]} 18. Nxd4 {[%emt 0:03:54]} Ne5 {[%emt 0:03:26]} 19. Bc4 {[%emt 0:00:20]} Rxa5 {[%emt 0:08:16]} 20. N2b3 {[%emt 0:01:20]} Ra8 {[%emt 0:02:00]} 21. Bxd5 {[%emt 0:00:07]} cxd5 {[%emt 0:00:06]} 22. Qb4 {[%emt 0:04:08]} f4 {[%emt 0:02:46]} 23. exf4 {[%emt 0:04:31]} Nd3 {[%emt 0:05:36]} 24. Qd2 {[%emt 0:06:23]} Nxf4 {[%emt 0:00:07][%cal Oc8h3] Threatens to win with ...Bh3!} 25. Kh1 {[%emt 0:00:57]} b6 {[%emt 0:04:48]} 26. Rfc1 {[%emt 0:04:14]} Bd7 {[%emt 0:10:33]} 27. Rc3 {[%emt 0:04:53]} Qd6 {[%emt 0:02:52]} 28. Rf3 {[%emt 0:04:20]} h6 {[%emt 0:00:51]} 29. h3 {[%emt 0:04:06]} Rf6 {[%emt 0:00:31]} 30. Qb4 {[%emt 0:01:11] [#] Black must now prevent Qxd6.} Qxb4 {[%emt 0:09:49]} 31. axb4 {[%emt 0:00:01]} Rxa1+ 32. Nxa1 {[%emt 0:00:01]} Nh5 {[%emt 0:02:41]} 33. Rxf6 {[%emt 0:00:24]} Nxf6 {[%emt 0:00:02][%mdl 4096] Endgame KBN-KNN} 34. Nac2 {[%emt 0:00:09]} Kg8 {[%emt 0:00:09]} 35. f3 {[%emt 0:00:42]} Kf7 {[%emt 0:00:14]} 36. Ne3 {[%emt 0:00:25]} g6 {[%emt 0:00:22]} 37. g4 {[%emt 0:00:56]} Ke7 {[%emt 0:00:39]} 38. Kg2 {[%emt 0:00:27]} Kd6 {[%emt 0:00:16]} 39. f4 {[%emt 0:00:19]} Be8 {[%emt 0:04:23]} 40. Kf3 {[%emt 0:00:22]} Ne4 {[%emt 0:00:27]} 41. Nd1 {[%emt 0:04:50]} Bd7 {[%emt 0:01:17]} 42. Nf2 {[%emt 0:00:47]} Nd2+ {[%emt 0:02:07]} 43. Ke2 {[%emt 0:00:53]} Nc4 {[%emt 0:00:50]} 44. Nd3 {[%emt 0:00:41]} Ke7 {[%emt 0:02:00]} 45. Ne5 {[%emt 0:03:18]} Nxe5 {[%emt 0:00:08]} 46. fxe5 {[%emt 0:00:01] KB-KN} g5 {[%emt 0:00:05]} 47. Ke3 {[%emt 0:00:52]} h5 $2 {[%emt 0:04:05][%mdl 8192] [#] This costs Black the game.} (47... Kf7 $16) 48. gxh5 $18 {[%emt 0:00:11][%cal Bg4h5,Bh5h6][%mdl 32]} Bxh3 {[%emt 0:00:07]} 49. h6 {[%emt 0:03:35] White mates.} Kf8 {[%emt 0:01:01]} 50. e6 {[%emt 0:00:25]} Kg8 {[%emt 0:00:13]} 51. Kf3 {[%emt 0:01:30]} Kh7 {[%emt 0:00:13]} 52. Kg3 {[%emt 0:00:07]} Bxe6 {[%emt 0:01:18]} 53. Nxe6 {[%emt 0:00:01]} Kxh6 {[%emt 0:00:07] KN-K3P} 54. Kg4 {[%emt 0:00:02]} Kg6 {[%emt 0:00:15]} 55. Nxg5 {[%emt 0:00:06]} Kf6 {[%emt 0:00:10]} 56. Kf4 {[%emt 0:00:03]} d4 {[%emt 0:00:58]} 57. Nf3 {[%emt 0:00:21]} Ke6 {[%emt 0:00:12]} 58. Ke4 {[%emt 0:05:05] Weighted Error Value: White=0.05 (flawless) /Black=0.13 (very precise)} 1-0